fUSD/lending_fUSD_20260208
["ID","MTS","AMOUNT","RATE_DAILY","PERIOD"]
[404764170,1770515461434,-220.851191,0.00044155,120]
[404764171,1770515461446,-220.285929,0.00044155,120]
[404764172,1770515461459,-220.851191,0.00044155,120]
[404764173,1770515461471,-220.285934,0.00044155,120]
[404764174,1770515461482,-220.851191,0.00044155,120]
[404764175,1770515461496,-220.851191,0.00044155,120]
[404764176,1770515461508,-220.851191,0.00044155,120]
[404764177,1770515461523,-220.851191,0.00044155,120]
[404764178,1770515461536,-220.851191,0.00044155,120]
[404764179,1770515461548,-220.851191,0.00044155,120]
[404764180,1770515461560,-220.851191,0.00044155,120]
[404764181,1770515461573,-220.851191,0.00044155,120]
[404764182,1770515461583,-220.851191,0.00044155,120]
[404764183,1770515461600,-220.851191,0.00044155,120]
[404764184,1770515461611,-220.851191,0.00044155,120]
[404764185,1770515461625,-220.851191,0.00044155,120]
[404764186,1770515461640,-220.851196,0.00044155,120]
[404764187,1770515461653,-151.0,0.00044155,120]
[404764188,1770515461663,-151.0,0.00044155,120]
[404764189,1770515461674,-151.0,0.00044155,120]
[404764190,1770515461685,-151.0,0.00044155,120]
[404764191,1770515461698,-257.8748,0.00044155,120]
[404764192,1770515461712,-257.8748,0.00044155,120]
[404764193,1770515461723,-257.8748,0.00044155,120]
[404764194,1770515461735,-257.8748,0.00044155,120]
[404764195,1770515461747,-257.8748,0.00044155,120]
[404764196,1770515461759,-257.8748,0.00044155,120]
[404764197,1770515461770,-257.8748,0.00044155,120]
[404764198,1770515461782,-257.8748,0.00044155,120]
[404764199,1770515461796,-257.8748,0.00044155,120]
[404764200,1770515461807,-257.8748,0.00044155,120]
[404764201,1770515461818,-257.8748,0.00044155,120]
[404764202,1770515461829,-257.8748,0.00044155,120]
[404764203,1770515461839,-257.8748,0.00044155,120]
[404764204,1770515461851,-257.8748,0.00044155,120]
[404764205,1770515461864,-257.8748,0.00044155,120]
[404764206,1770515461876,-257.874791,0.00044155,120]
[404764207,1770515461887,-151.0,0.00044155,120]
[404764208,1770515461899,-214.901601,0.00044155,120]
[404764209,1770515461910,-151.0,0.00044155,120]
[404764210,1770515461922,-151.0,0.00044155,120]
[404764211,1770515461935,-151.0,0.00044155,120]
[404764212,1770515461946,-41.69721603,0.00044155,120]
[404764213,1770515462044,-300.0,0.00039751,2]
[404764214,1770515462055,-109.30278397,0.00044155,120]
[404764215,1770515462068,-158.460708,0.00044155,120]
[404764216,1770515462079,-151.0,0.00044155,120]
[404764217,1770515462090,-104.02047589,0.00044155,120]
[404764218,1770515462104,-46.97952411,0.00044155,120]
[404764219,1770515462115,-151.0,0.00044155,120]
[404764220,1770515462127,-151.0,0.00044155,120]
[404764221,1770515462137,-151.0,0.00044155,120]
[404764222,1770515462149,-151.0,0.00044155,120]
[404764223,1770515462162,-151.0,0.00044155,120]
[404764224,1770515462174,-151.0,0.00044155,120]
[404764225,1770515462185,-151.0,0.00044155,120]
[404764226,1770515462196,-151.0,0.00044155,120]
[404764227,1770515462207,-151.0,0.00044155,120]
[404764228,1770515462219,-151.0,0.00044155,120]
[404764229,1770515462229,-151.0,0.00044155,120]
[404764230,1770515462240,-151.0,0.00044155,120]
[404764231,1770515462251,-151.0,0.00044155,120]
[404764232,1770515462262,-151.0,0.00044155,120]
[404764233,1770515462274,-151.0,0.00044155,120]
[404764234,1770515462285,-151.0,0.00044155,120]
[404764235,1770515462296,-151.0,0.00044155,120]
[404764236,1770515462307,-151.0,0.00044155,120]
[404764237,1770515462318,-260.047121,0.00044155,120]
[404764238,1770515462329,-260.047121,0.00044155,120]
[404764239,1770515462341,-260.047121,0.00044155,120]
[404764240,1770515462352,-260.047121,0.00044155,120]
[404764241,1770515462364,-260.047121,0.00044155,120]
[404764242,1770515462376,-260.047121,0.00044155,120]
[404764243,1770515462389,-260.047121,0.00044155,120]
[404764244,1770515462402,-260.047121,0.00044155,120]
[404764245,1770515462415,-260.047121,0.00044155,120]
[404764246,1770515462426,-260.047121,0.00044155,120]
[404764247,1770515462435,-260.047121,0.00044155,120]
[404764248,1770515462445,-260.047121,0.00044155,120]
[404764249,1770515462454,-260.047121,0.00044155,120]
[404764250,1770515462463,-260.047121,0.00044155,120]
[404764251,1770515462473,-260.047121,0.00044155,120]
[404764252,1770515462483,-260.047117,0.00044155,120]
[404764253,1770515462492,-1031.328046,0.00044155,28]
[404764254,1770515462502,-1031.328046,0.00044155,28]
[404764255,1770515462511,-1031.328046,0.00044155,28]
[404764256,1770515462520,-1031.328046,0.00044155,28]
[404764257,1770515462530,-1031.328046,0.00044155,28]
[404764258,1770515462539,-1031.328046,0.00044155,28]
[404764259,1770515462549,-1031.328046,0.00044155,28]
[404764260,1770515462560,-1031.328046,0.00044155,28]
[404764261,1770515462570,-1031.328046,0.00044155,28]
[404764262,1770515462580,-1031.328046,0.00044155,28]
[404764263,1770515462593,-1031.328046,0.00044155,28]
[404764264,1770515462603,-1031.328046,0.00044155,28]
[404764265,1770515462614,-1031.328046,0.00044155,28]
[404764266,1770515462623,-1031.328046,0.00044155,28]
[404764267,1770515462634,-1031.328046,0.00044155,28]
[404764268,1770515462644,-1031.32805,0.00044155,28]
[404764269,1770515462653,-2452.29,0.00044158,120]
[404764270,1770515462662,-249.0,0.00044159,120]
[404764271,1770515462674,-500.0,0.00044162,120]
[404764272,1770515462683,-151.0,0.00044164,30]
[404764273,1770515462693,-151.0,0.00044164,14]
[404764274,1770515462702,-151.0,0.00044164,14]
[404764275,1770515462712,-151.0,0.00044164,120]
[404764276,1770515462721,-151.0,0.00044164,120]
[404764277,1770515462731,-151.0,0.00044164,120]
[404764278,1770515462740,-151.0,0.00044164,30]
[404764279,1770515462750,-427.17187006,0.00044164,30]
[404764280,1770515462759,-427.17187006,0.00044164,30]
[404764281,1770515462769,-427.17187006,0.00044164,30]
[404764282,1770515462780,-155.0,0.00044165,120]
[404764283,1770515462791,-151.0,0.00044165,120]
[404764284,1770515462800,-699.223126,0.00044165,120]
[404764285,1770515462810,-444.832328,0.00044165,120]
[404764286,1770515462820,-699.223126,0.00044165,120]
[404764287,1770515462829,-444.832328,0.00044165,120]
[404764288,1770515462839,-699.223126,0.00044165,120]
[404764289,1770515462849,-699.223126,0.00044165,120]
[404764290,1770515462859,-444.832328,0.00044165,120]
[404764291,1770515462868,-277.25682264,0.00044165,120]
[404764292,1770515462881,-167.57550536,0.00044165,120]
[404764293,1770515462890,-151.0,0.00044165,120]
[404764294,1770515462899,-171.428821,0.00044165,120]
[404764295,1770515462909,-500.0,0.00044165,120]
[404764296,1770515462918,-151.0,0.00044166,30]
[404764297,1770515462927,-151.0,0.00044166,120]
[404764298,1770515462937,-40.6119128,0.00044166,120]
[404764299,1770515463226,-110.3880872,0.00044166,120]
[404764300,1770515463248,-151.0,0.00044166,120]
[404764301,1770515463263,-151.0,0.00044166,120]
[404764302,1770515463272,-200.737238,0.00044166,120]
[404764303,1770515463282,-151.0,0.00044166,120]
[404764304,1770515463292,-151.0,0.00044166,120]
[404764305,1770515463302,-136.50355664,0.00044166,120]
[404764306,1770515463329,-14.49644336,0.00044166,120]
[404764307,1770515463338,-151.0,0.00044166,120]
[404764308,1770515463348,-151.0,0.00044166,120]
[404764309,1770515463357,-151.0,0.00044166,120]
[404764310,1770515463366,-151.0,0.00044166,120]
[404764311,1770515463376,-151.0,0.00044166,120]
[404764312,1770515463385,-151.0,0.00044166,120]
[404764313,1770515463395,-151.0,0.00044166,120]
[404764314,1770515463404,-151.0,0.00044166,120]
[404764315,1770515463413,-151.0,0.00044166,120]
[404764316,1770515463422,-151.0,0.00044166,120]
[404764317,1770515463431,-151.0,0.00044166,120]
[404764318,1770515463440,-151.0,0.00044166,120]
[404764319,1770515463449,-151.0,0.00044166,120]
[404764320,1770515463459,-226.215866,0.00044166,120]
[404764321,1770515463468,-555.397952,0.00044166,120]
[404764322,1770515463477,-555.397952,0.00044166,120]
[404764323,1770515463487,-555.397952,0.00044166,120]
[404764324,1770515463496,-555.397952,0.00044166,120]
[404764325,1770515463505,-203.7304585,0.00044166,120]
[404764326,1770515466301,600.0,0.00024706,120]
[404764327,1770515466390,600.0,0.00022734,120]
[404764328,1770515466552,610.48982797,0.00028133,120]
[404764329,1770515523843,262.0,0.0003561,30]
[404764332,1770515582962,834.88386523,0.0003561,30]
[404764337,1770515608400,161.0,0.00035616,30]
[404764342,1770515807037,459.07,0.00029869,120]
[404764343,1770515807227,459.07,0.00033603,120]
[404764349,1770515873763,705.0,0.00035616,30]
[404764350,1770515893146,20983.88,0.00035616,30]
[404764352,1770515934610,517.18,0.00027502,30]
[404764353,1770515934799,517.18,0.00032337,30]
[404764411,1770516120769,532.8523997,0.00035616,120]
[404764413,1770516277967,400.0,0.00035616,120]
[404764414,1770516339569,1000.0,0.00035616,120]
[404764415,1770516343103,154.86,0.00035616,30]
[404764416,1770516346817,1000.0,0.00035616,120]
[404764419,1770516387425,1026.20563267,0.00035616,120]
[404764472,1770516631878,-975.17458624,0.00013049,2]
[404764473,1770516632090,-687.4601777,0.00013049,2]
[404764474,1770516632101,-1067.46523606,0.00013049,2]
[404764475,1770516632111,-300.0,0.00014089,2]
[404764476,1770516632121,-300.0,0.00014354,2]
[404764477,1770516632130,-300.0,0.00014354,2]
[404764478,1770516632140,-300.14521034,0.00014818,2]
[404764479,1770516632150,-778.29500462,0.00015029,4]
[404764480,1770516632160,-172.68880789,0.00015129,2]
[404764481,1770516632169,-172.68880787,0.00015214,2]
[404764482,1770516632178,-339.40663404,0.00015299,2]
[404764483,1770516632188,-172.68880787,0.00015299,2]
[404764484,1770516632197,-193.12051925,0.00015373,2]
[404764485,1770516632206,-164.43916839,0.00015389,2]
[404764486,1770516632216,-1200.0,0.00015397,2]
[404764487,1770516632225,-174.83421126,0.00015398,2]
[404764488,1770516632234,-338.23489296,0.00015398,2]
[404764489,1770516632243,-500.0,0.00015398,2]
[404764490,1770516632252,-500.0,0.00015398,2]
[404764491,1770516632261,-500.0,0.00015398,2]
[404764492,1770516632270,-12853.99269945,0.00015399,2]
[404764510,1770516638155,-4097.43696543,0.00015399,2]
[404764511,1770516638167,-659.76445909,0.00015399,2]
[404764512,1770516638261,-223454.27093637,0.00015399,2]
[404764542,1770516640255,-626.198,0.00015399,2]
[404764543,1770516640360,-862.5027801,0.00015399,2]
[404764544,1770516640372,-3257445.83415956,0.00015399,2]
[404764545,1770516640381,-24839.8028,0.00015399,2]
[404764546,1770516640391,-2500.0,0.00015399,2]
[404764547,1770516640400,-4657.83024455,0.000154,2]
[404764548,1770516640411,-2384.0988,0.000155,2]
[404764549,1770516640429,-151.0,0.00015591,2]
[404764550,1770516640439,-151.0,0.00015591,2]
[404764551,1770516640449,-151.0,0.00015591,2]
[404764552,1770516640458,-151.0,0.00015591,2]
[404764553,1770516640468,-151.0,0.00015591,2]
[404764554,1770516640477,-151.0,0.00015591,2]
[404764555,1770516640487,-151.0,0.00015591,2]
[404764556,1770516640496,-151.0,0.00015591,2]
[404764557,1770516640505,-151.0,0.00015591,2]
[404764558,1770516640514,-151.0,0.00015591,2]
[404764559,1770516640524,-151.0,0.00015591,2]
[404764560,1770516640533,-151.0,0.00015591,2]
[404764561,1770516640543,-151.0,0.00015591,2]
[404764562,1770516640553,-151.0,0.00015591,2]
[404764563,1770516640567,-152.15259723,0.00015591,2]
[404764564,1770516640577,-500.0,0.00015599,2]
[404764565,1770516640586,-500.0,0.00015599,2]
[404764566,1770516640596,-536.27696157,0.00015599,2]
[404764567,1770516640605,-500.0,0.00015599,2]
[404764568,1770516640615,-500.0,0.00015599,2]
[404764569,1770516640624,-406.09210056,0.00015599,2]
[404764570,1770516640633,-861.419,0.00015599,2]
[404764571,1770516640643,-515.12791948,0.00015599,2]
[404764572,1770516640653,-181.07781343,0.000156,2]
[404764573,1770516640663,-1000.0,0.000157,2]
[404764574,1770516640672,-10000.0,0.000157,2]
[404764575,1770516640682,-9999.99,0.00016116,2]
[404764576,1770516640691,-150.99,0.00016116,2]
[404764577,1770516640700,-353.86,0.00016116,2]
[404764578,1770516640710,-669.73,0.00016451,2]
[404764579,1770516640719,-250.39568289,0.00016848,2]
[404764580,1770516640729,-252.82671144,0.00016862,2]
[404764581,1770516640738,-669.73,0.00017273,2]
[404764582,1770516640747,-150.0,0.00017467,2]
[404764583,1770516640757,-7938.0,0.00017534,2]
[404764584,1770516640766,-7938.0,0.00017589,2]
[404764585,1770516640775,-7938.0,0.00017644,2]
[404764586,1770516640785,-7938.0,0.00017698,2]
[404764587,1770516640796,-7938.0,0.00017753,2]
[404764588,1770516640806,-7938.0,0.00017808,2]
[404764589,1770516640815,-500.0,0.00017808,2]
[404764590,1770516640826,-500.0,0.00017808,2]
[404764591,1770516640835,-500.0,0.00017808,2]
[404764592,1770516640844,-500.0,0.00017808,2]
[404764593,1770516640854,-500.0,0.00017808,2]
[404764594,1770516640864,-500.0,0.00017808,2]
[404764595,1770516640874,-500.0,0.00017808,2]
[404764596,1770516640883,-500.0,0.00017808,2]
[404764597,1770516640893,-500.0,0.00017808,2]
[404764598,1770516640903,-500.0,0.00017808,2]
[404764599,1770516640913,-500.0,0.00017808,2]
[404764600,1770516640923,-500.0,0.00017808,2]
[404764601,1770516640933,-500.0,0.00017808,2]
[404764602,1770516640943,-500.0,0.00017808,2]
[404764603,1770516640952,-500.0,0.00017808,2]
[404764604,1770516640961,-500.0,0.00017808,2]
[404764605,1770516640974,-500.0,0.00017808,2]
[404764606,1770516640984,-500.0,0.00017808,2]
[404764607,1770516640996,-500.0,0.00017808,2]
[404764608,1770516641007,-500.0,0.00017808,2]
[404764609,1770516641016,-500.0,0.00017808,2]
[404764610,1770516641026,-500.0,0.00017808,2]
[404764611,1770516641036,-500.0,0.00017808,2]
[404764612,1770516641045,-500.0,0.00017808,2]
[404764613,1770516641055,-500.0,0.00017808,2]
[404764614,1770516641064,-500.0,0.00017808,2]
[404764615,1770516641075,-524.84742139,0.00017808,2]
[404764616,1770516641084,-500.0,0.00017808,2]
[404764617,1770516641094,-500.0,0.00017808,2]
[404764618,1770516641103,-500.0,0.00017808,2]
[404764619,1770516641113,-500.0,0.00017808,2]
[404764620,1770516641123,-500.0,0.00017808,2]
[404764621,1770516641132,-500.0,0.00017808,2]
[404764622,1770516641142,-500.0,0.00017808,2]
[404764623,1770516641151,-500.0,0.00017808,2]
[404764624,1770516641161,-500.0,0.00017808,2]
[404764625,1770516641171,-500.0,0.00017808,2]
[404764626,1770516641180,-500.0,0.00017808,2]
[404764627,1770516641190,-500.0,0.00017808,2]
[404764628,1770516641201,-500.0,0.00017808,2]
[404764629,1770516641211,-500.0,0.00017808,2]
[404764630,1770516641222,-500.0,0.00017808,2]
[404764631,1770516641232,-500.0,0.00017808,2]
[404764632,1770516641242,-500.0,0.00017808,2]
[404764633,1770516641253,-500.0,0.00017808,2]
[404764634,1770516641263,-500.0,0.00017808,2]
[404764635,1770516641274,-500.0,0.00017808,2]
[404764636,1770516641283,-500.0,0.00017808,2]
[404764637,1770516641294,-500.0,0.00017808,2]
[404764638,1770516641304,-500.0,0.00017808,2]
[404764639,1770516641314,-500.0,0.00017808,2]
[404764640,1770516641324,-500.0,0.00017808,2]
[404764641,1770516641333,-500.0,0.00017808,2]
[404764642,1770516641342,-500.0,0.00017808,2]
[404764643,1770516641352,-500.0,0.00017808,2]
[404764644,1770516641365,-500.0,0.00017808,2]
[404764645,1770516641374,-500.0,0.00017808,2]
[404764646,1770516641383,-500.0,0.00017808,2]
[404764647,1770516641393,-500.0,0.00017808,2]
[404764648,1770516641403,-500.0,0.00017808,2]
[404764649,1770516641412,-500.0,0.00017808,2]
[404764650,1770516641421,-500.0,0.00017808,2]
[404764651,1770516641630,-500.0,0.00017808,2]
[404764652,1770516641697,-681.93394971,0.00017808,2]
[404764653,1770516641708,-681.93394971,0.00017808,2]
[404764654,1770516641719,-681.93394971,0.00017808,2]
[404764655,1770516641729,-681.93394971,0.00017808,2]
[404764656,1770516641738,-681.93394971,0.00017808,2]
[404764657,1770516641747,-681.93394971,0.00017808,2]
[404764658,1770516641757,-681.93394971,0.00017808,2]
[404764659,1770516641767,-681.93394971,0.00017808,2]
[404764660,1770516641777,-681.93394971,0.00017808,2]
[404764661,1770516641788,-681.93394971,0.00017808,2]
[404764662,1770516641797,-681.93394971,0.00017808,2]
[404764663,1770516641807,-681.93394971,0.00017808,2]
[404764664,1770516641816,-681.93394971,0.00017808,2]
[404764665,1770516641825,-681.93394971,0.00017808,2]
[404764666,1770516641835,-681.93394971,0.00017808,2]
[404764667,1770516641844,-681.93394971,0.00017808,2]
[404764668,1770516641854,-681.93394971,0.00017808,2]
[404764669,1770516641865,-681.93394971,0.00017808,2]
[404764670,1770516641874,-681.93394971,0.00017808,2]
[404764671,1770516641883,-681.93394971,0.00017808,2]
[404764672,1770516641893,-681.93394971,0.00017808,2]
[404764673,1770516641903,-681.93394971,0.00017808,2]
[404764674,1770516641912,-681.93394971,0.00017808,2]
[404764675,1770516641922,-681.93394971,0.00017808,2]
[404764676,1770516641932,-681.93394971,0.00017808,2]
[404764677,1770516641942,-681.93394971,0.00017808,2]
[404764678,1770516641951,-681.93394971,0.00017808,2]
[404764679,1770516641961,-7938.0,0.00017863,2]
[404764680,1770516641971,-7938.0,0.00017918,2]
[404764681,1770516641980,-7938.0,0.00017972,2]
[404764682,1770516641991,-7938.0,0.00018027,2]
[404764683,1770516642005,-7938.0,0.00018082,2]
[404764684,1770516642015,-669.73,0.00018096,2]
[404764685,1770516642024,-7938.0,0.00018137,2]
[404764686,1770516642033,-7938.0,0.00018192,2]
[404764687,1770516642042,-7938.0,0.00018246,2]
[404764688,1770516642057,-7938.0,0.00018301,2]
[404764689,1770516642067,-7938.0,0.00018356,2]
[404764690,1770516642077,-7938.0,0.00018411,2]
[404764691,1770516642086,-166.66,0.00018455,2]
[404764692,1770516642095,-7938.0,0.00018466,2]
[404764693,1770516642105,-7938.0,0.0001852,2]
[404764694,1770516642115,-7938.0,0.00018575,2]
[404764695,1770516642125,-4657.83024449,0.00018585,2]
[404764696,1770516642135,-4138.3239932,0.00018586,2]
[404764697,1770516642144,-7938.0,0.0001863,2]
[404764698,1770516642155,-7938.0,0.00018685,2]
[404764699,1770516642164,-7938.0,0.00018739,2]
[404764700,1770516642174,-7957.1094741,0.00018794,2]
[404764701,1770516642184,-166.66,0.00018843,2]
[404764702,1770516642194,-669.73,0.00018918,2]
[404764703,1770516642203,-200.23286085,0.00019082,2]
[404764704,1770516642213,-166.66,0.00019232,2]
[404764705,1770516642223,-339.40663397,0.00019409,2]
[404764706,1770516642232,-166.66,0.0001962,2]
[404764707,1770516642242,-669.73,0.00019741,2]
[404764708,1770516642252,-166.66,0.00020009,2]
[404764709,1770516642262,-181.07781338,0.00020345,2]
[404764710,1770516642273,-166.66,0.00020397,2]
[404764711,1770516642282,-160.0,0.00021551,2]
[404764712,1770516642293,-4657.83024449,0.0002177,2]
[404764713,1770516642304,-4138.3239932,0.00021771,2]
[404764714,1770516642315,-500.0,0.00021918,2]
[404764715,1770516642326,-369.17444929,0.00021918,2]
[404764716,1770516642336,-500.0,0.00021918,2]
[404764717,1770516642348,-500.0,0.00021918,2]
[404764718,1770516642358,-500.0,0.00021918,2]
[404764719,1770516642368,-500.0,0.00021918,2]
[404764720,1770516642377,-424.39,0.00022,7]
[404764721,1770516642387,-270.80046435,0.0002246,2]
[404764722,1770516642396,-340.43008438,0.0002246,2]
[404764723,1770516642405,-500.0,0.0002246,2]
[404764724,1770516642414,-160.0,0.00023005,2]
[404764725,1770516642423,-1000.0,0.00023008,2]
[404764726,1770516642437,-339.40663397,0.0002352,2]
[404764727,1770516642447,-503.28322142,0.00023556,2]
[404764728,1770516642456,-2730.1,0.0002483,2]
[404764729,1770516642466,-4657.83024449,0.00024955,2]
[404764730,1770516642475,-4138.3239932,0.00024957,2]
[404764731,1770516642484,-181.07781338,0.0002509,2]
[404764732,1770516642493,-150.0,0.00027369,2]
[404764733,1770516642502,-1447.25,0.00027397,2]
[404764734,1770516642511,-339.40663397,0.0002763,2]
[404764735,1770516642520,-4657.83024449,0.0002814,2]
[404764736,1770516642529,-4138.3239932,0.00028143,2]
[404764737,1770516642538,-181.07781338,0.00029836,2]
[404764738,1770516642547,-152.56,0.0003,2]
[404764739,1770516642557,-152.56,0.0003,2]
[404764740,1770516642567,-152.56,0.0003,2]
[404764741,1770516642576,-152.56,0.0003,2]
[404764742,1770516642586,-152.56,0.0003,2]
[404764743,1770516642595,-152.56,0.0003,2]
[404764744,1770516642604,-1152.74,0.00030088,2]
[404764745,1770516642613,-177.0,0.00030408,2]
[404764746,1770516642622,-178.0,0.00030423,2]
[404764747,1770516642631,-402.0,0.00030438,2]
[404764748,1770516642641,-177.0,0.00030577,7]
[404764749,1770516642650,-177.0,0.00030787,7]
[404764750,1770516642659,-177.0,0.00030993,2]
[404764751,1770516642668,-177.0,0.00031043,2]
[404764752,1770516642678,-180.0,0.00031179,2]
[404764753,1770516642691,-177.0,0.00031194,7]
[404764754,1770516642701,-177.0,0.00031312,2]
[404764755,1770516642712,-4657.83024449,0.00031326,2]
[404764756,1770516642722,-4138.3239932,0.00031328,2]
[404764757,1770516642732,-177.0,0.00031378,2]
[404764758,1770516642742,-177.0,0.00031584,2]
[404764759,1770516642751,-177.0,0.00031588,7]
[404764760,1770516642761,-178.0,0.00031719,7]
[404764762,1770516642771,-339.40663397,0.0003174,2]
[404764764,1770516642781,-177.0,0.00031919,2]
[404764766,1770516642791,-182.34249586,0.00032005,8]
[404764768,1770516642800,-177.0,0.00032463,2]
[404764770,1770516642812,-509.0,0.00032616,2]
[404764771,1770516642822,-177.0,0.00032684,2]
[404764772,1770516642831,-177.0,0.00032703,2]
[404764773,1770516642840,-177.0,0.00032763,2]
[404764774,1770516642850,-424.39,0.000328,7]
[404764775,1770516642859,-177.0,0.0003285,2]
[404764776,1770516642869,-177.0,0.00032898,2]
[404764777,1770516642879,-707.27,0.000329,2]
[404764778,1770516642889,-13151.0,0.000329,14]
[404764779,1770516642899,-177.0,0.00032938,2]
[404764780,1770516642908,-5000.0,0.00033018,2]
[404764781,1770516642918,-177.0,0.00033053,2]
[404764782,1770516642927,-177.0,0.0003319,2]
[404764783,1770516642936,-177.0,0.00033192,7]
[404764784,1770516642946,-177.0,0.00033214,7]
[404764785,1770516642955,-200.0,0.0003426,2]
[404764786,1770516642965,-509.0,0.00034309,4]
[404764787,1770516642976,-4657.83024449,0.00034511,2]
[404764788,1770516642985,-4138.3239932,0.00034514,2]
[404764789,1770516642999,-181.07781338,0.00034581,2]
[404764790,1770516643008,-7556.0,0.000346,2]
[404764791,1770516643018,-1119.80173367,0.00034898,20]
[404764792,1770516643027,-1123.22973112,0.00034898,20]
[404764793,1770516643038,-1055.21053251,0.00034898,20]
[404764794,1770516643048,-1052.04868121,0.00034898,20]
[404764795,1770516643057,-1070.12065634,0.00034898,20]
[404764796,1770516643069,-1014.29139401,0.00034898,20]
[404764797,1770516643079,-1066.15571425,0.00034898,20]
[404764798,1770516643088,-1108.54635805,0.00034898,20]
[404764799,1770516643098,-150.0,0.00034904,2]
[404764800,1770516643107,-5529.0,0.00035,3]
[404764801,1770516643117,-150.13,0.0003526,2]
[404764802,1770516643127,-150.0,0.0003526,2]
[404764803,1770516643138,-3484.0,0.00035291,2]
[404764804,1770516643150,-619.42,0.00035291,2]
[404764805,1770516643159,-1550.434,0.00035291,2]
[404764806,1770516643169,-1342.45,0.00035291,2]
[404764807,1770516643179,-1280.184,0.00035291,2]
[404764808,1770516643190,-1213.662,0.00035291,2]
[404764809,1770516643199,-922.428,0.00035291,2]
[404764810,1770516643213,-2447.0,0.00035291,2]
[404764811,1770516643224,-412.0,0.00035291,2]
[404764812,1770516643235,-3255.0,0.00035291,2]
[404764813,1770516643244,-5529.0,0.000353,5]
[404764814,1770516643254,-13151.0,0.000355,14]
[404764815,1770516643263,-1500.0,0.00035616,15]
[404764816,1770516643272,-1500.0,0.00035616,15]
[404764817,1770516643282,-2605.711302,0.00035616,15]
[404764818,1770516643293,-318.73126935,0.00035616,7]
[404764819,1770516643303,-339.40663397,0.0003585,2]
[404764820,1770516643313,-509.0,0.00036001,6]
[404764821,1770516643324,-2730.1,0.00036611,2]
[404764822,1770516643334,-150.0,0.00036649,2]
[404764823,1770516643345,-517.18,0.00037172,120]
[404764824,1770516643355,-707.27,0.000372,2]
[404764825,1770516643365,-197.19613653,0.000372,120]
[404764826,1770516643375,-459.07,0.00037336,120]
[404764827,1770516643386,-424.39,0.000376,14]
[404764828,1770516643396,-509.0,0.00037693,8]
[404764829,1770516643406,-4657.83024449,0.00037696,2]
[404764830,1770516643416,-4138.3239932,0.000377,2]
[404764831,1770516643426,-150.0,0.0003826,2]
[404764832,1770516643435,-150.0,0.0003826,2]
[404764833,1770516643445,-3484.0,0.00038291,2]
[404764834,1770516643455,-616.0,0.00038291,2]
[404764835,1770516643466,-1411.0,0.00038291,2]
[404764836,1770516643477,-1272.0,0.00038291,2]
[404764837,1770516643487,-1206.0,0.00038291,2]
[404764838,1770516643499,-917.0,0.00038291,2]
[404764839,1770516643508,-2447.0,0.00038291,2]
[404764840,1770516643519,-412.0,0.00038291,2]
[404764841,1770516643529,-3255.0,0.00038291,2]
[404764842,1770516643539,-150.0,0.00038482,2]
[404764843,1770516643549,-202.0,0.00038568,120]
[404764845,1770516643559,-175.15556915,0.0003919,30]
[404764847,1770516643568,-861.419,0.00039199,54]
[404764849,1770516643577,-181.07781338,0.00039326,2]
[404764851,1770516643586,-509.0,0.00039386,10]
[404764853,1770516643595,-13151.0,0.000394,14]